[Event "NED-ch U20 Youth 2019"]
[Site "Assen"]
[Date "2019.05.03"]
[Round "6.3"]
[White "De Boer, Eelke"]
[Black "Van Roon, Sjoerd"]
[Result "1-0"]
[ECO "C65"]
[WhiteElo "2338"]
[BlackElo "2115"]
[Annotator "NA"]
[PlyCount "119"]
[EventDate "2019.04.28"]
[EventType "swiss"]
[EventCountry "NED"]
[SourceTitle "playchess.com"]
[Source "ChessBase"]
[SourceQuality "1"]
[TimeControl "40/5400+30:1800+30"]

1. e4 {[%emt 0:00:00]} e5 {[%emt 0:00:00]} 2. Nf3 {[%emt 0:00:00]} Nc6 {[%emt 0:00:00]} 3. Bb5 {[%emt 0:00:00]} Nf6 {[%emt 0:00:00]} 4. d3 {[%emt 0:00:00]} Bc5 {[%emt 0:00:12]} 5. c3 {[%emt 0:00:00]} d5 {[%emt 0:00:17]} 6. exd5 $14 {[%emt 0:00:21] Pin} Qxd5 {[%emt 0:00:07]} 7. Bc4 {[%emt 0:00:06]} Qd6 {[%emt 0:00:04]} 8. Nbd2 {[%emt 0:00:33]} Bf5 {[%emt 0:00:16]} 9. Qc2 {[%emt 0:02:19]} O-O-O {[%emt 0:01:20]} 10. b4 {[%emt 0:10:58]} Bxb4 {[%emt 0:02:33]} 11. cxb4 {[%emt 0:00:16]} Nxb4 {[%emt 0:00:19]} 12. Qb3 {[%emt 0:08:36]} Bxd3 {[%emt 0:01:10]} 13. Ba3 {[%emt 0:01:36]} Bxc4 {[%emt 0:11:24]} 14. Qxb4 {[%emt 0:03:26]} Qxb4 {[%emt 0:00:37]} 15. Bxb4 {[%emt 0:00:07]} Ba6 {[%emt 0:00:37]} 16. Be7 {[%emt 0:21:44]} Rd5 {[%emt 0:04:31]} 17. Bxf6 {[%emt 0:12:27]} gxf6 {[%emt 0:00:05]} 18. O-O-O {[%emt 0:00:17]} Be2 {[%emt 0:06:44]} 19. Rde1 {[%emt 0:00:40]} Bd3 {[%emt 0:00:06]} 20. Re3 {[%emt 0:05:31]} Rhd8 {[%emt 0:12:49]} 21. g4 {[%emt 0:05:32]} c5 {[%emt 0:23:45]} 22. Kb2 {[%emt 0:03:21]} b5 {[%emt 0:02:41]} 23. h4 {[%emt 0:06:02]} Kb7 {[%emt 0:06:24]} 24. g5 {[%emt 0:00:37]} Bf5 {[%emt 0:02:50]} 25. Kc1 {[%emt 0:02:18]} fxg5 {[%emt 0:01:25]} 26. hxg5 {[%emt 0:00:07]} c4 {[%emt 0:00:44]} 27. Rxe5 {[%emt 0:03:44]} c3 {[%emt 0:01:16]} 28. Nb3 {[%emt 0:00:26]} Kb6 {[%emt 0:01:17]} 29. Rxd5 {[%emt 0:09:11]} Rxd5 {[%emt 0:00:03]} 30. Rd1 {[%emt 0:00:14]} Rxd1+ {[%emt 0:08:02]} 31. Kxd1 {[%emt 0:00:09]} a5 {[%emt 0:00:02]} 32. Nbd4 {[%emt 0:00:34]} Be4 {[%emt 0:00:22]} 33. Ne5 {[%emt 0:00:47]} Bd5 {[%emt 0:00:18]} 34. Nd7+ {[%emt 0:00:40]} Kc7 {[%emt 0:00:44]} 35. Nf6 {[%emt 0:00:17]} Bc4 {[%emt 0:00:44]} 36. Kc2 {[%emt 0:00:57]} b4 {[%emt 0:00:19]} 37. a3 {[%emt 0:01:19]} Kd6 {[%emt 0:01:40]} 38. f4 {[%emt 0:02:12]} Bd5 {[%emt 0:02:08]} 39. Nf5+ {[%emt 0:01:25]} Kc5 {[%emt 0:00:47]} 40. Nd7+ {[%emt 0:00:24]} Kb5 {[%emt 0:01:42]} 41. a4+ {[%emt 0:13:07]} Ka6 {[%emt 0:04:12]} 42. Nd6 {[%emt 0:00:42]} Ka7 {[%emt 0:03:09]} 43. Ne5 {[%emt 0:05:06]} Kb6 {[%emt 0:02:58]} 44. Ndc4+ {[%emt 0:02:26]} Kc5 {[%emt 0:03:06]} 45. Nxa5 {[%emt 0:00:09]} Be4+ {[%emt 0:00:43]} 46. Kb3 {[%emt 0:02:25]} Bd5+ {[%emt 0:01:43]} 47. Nac4 {[%emt 0:01:04]} Kd4 {[%emt 0:00:49]} 48. a5 {[%emt 0:00:30]} Ke4 {[%emt 0:01:44]} 49. a6 {[%emt 0:02:56]} Kxf4 {[%emt 0:00:08]} 50. Nd3+ {[%emt 0:00:11]} Kxg5 {[%emt 0:00:21]} 51. Nxb4 {[%emt 0:00:06]} Bh1 {[%emt 0:01:18]} 52. Nb6 {[%emt 0:00:22]} h5 {[%emt 0:01:28]} 53. N6d5 {[%emt 0:00:33]} c2 {[%emt 0:02:01]} 54. Kxc2 {[%emt 0:00:24]} h4 {[%emt 0:00:11]} 55. a7 {[%emt 0:00:05]} f5 {[%emt 0:01:13]} 56. a8=Q {[%emt 0:00:09]} Be4+ {[%emt 0:00:19]} 57. Kd2 {[%emt 0:00:07]} h3 {[%emt 0:00:09]} 58. Qg8+ {[%emt 0:00:35]} Kh4 {[%emt 0:00:09]} 59. Ne3 {[%emt 0:01:13]} f4 {[%emt 0:01:10]} 60. Qg4# {[%emt 0:08:37]} 1-0

[Event "NED-ch U20 Youth 2019"]
[Site "Assen"]
[Date "2019.05.03"]
[Round "6.4"]
[White "Elgersma, Simon"]
[Black "Pols, Wiggert"]
[Result "1/2-1/2"]
[ECO "B32"]
[WhiteElo "2137"]
[BlackElo "2104"]
[Annotator "NA"]
[PlyCount "54"]
[EventDate "2019.04.28"]
[EventType "swiss"]
[EventCountry "NED"]
[SourceTitle "playchess.com"]
[Source "ChessBase"]
[SourceQuality "1"]
[TimeControl "40/5400+30:1800+30"]

1. e4 {[%emt 0:00:00]} c5 {[%emt 0:00:00]} 2. Nf3 {[%emt 0:00:00]} Nc6 {[%emt 0:00:00]} 3. d4 {[%emt 0:00:06]} cxd4 {[%emt 0:00:00]} 4. Nxd4 {[%emt 0:00:11]} e5 {[%emt 0:00:00]} 5. Nb5 {[%emt 0:00:06]} d6 {[%emt 0:00:00]} 6. N1c3 {[%emt 0:00:06]} a6 {[%emt 0:00:00]} 7. Na3 {[%emt 0:00:05]} b5 {[%emt 0:00:00]} 8. Nd5 {[%emt 0:00:05]} Nge7 {[%emt 0:00:00]} 9. c4 {[%emt 0:00:05]} Nxd5 {[%emt 0:00:00]} 10. exd5 {[%emt 0:00:04]} Nd4 {[%emt 0:00:08]} 11. cxb5 {[%emt 0:00:08]} g6 {[%emt 0:00:06]} 12. Be3 {[%emt 0:00:24]} Bg7 {[%emt 0:00:04]} 13. Bxd4 {[%emt 0:00:31]} exd4 {[%emt 0:00:04]} 14. Bd3 {[%emt 0:00:30]} O-O {[%emt 0:00:05]} 15. O-O {[%emt 0:00:16]} Qa5 {[%emt 0:00:03]} 16. Qf3 {[%emt 0:28:11]} Qb4 {[%emt 0:08:29]} 17. bxa6 {[%emt 0:07:43]} Bxa6 {[%emt 0:00:25]} 18. Bxa6 {[%emt 0:01:00]} Rxa6 {[%emt 0:00:06]} 19. Qd3 {[%emt 0:03:41]} Ra5 {[%emt 0:00:21]} 20. Nc4 {[%emt 0:08:05]} Rxd5 {[%emt 0:02:25]} 21. a3 {[%emt 0:03:53]} Qb5 {[%emt 0:06:16]} 22. b4 {[%emt 0:11:38]} Rc8 {[%emt 0:03:41]} 23. Rfc1 {[%emt 0:00:47]} Qc6 {[%emt 0:01:36]} 24. Qd2 {[%emt 0:04:39]} Qa6 {[%emt 0:06:08]} 25. Qd3 {[%emt 0:08:23]} Qc6 {[%emt 0:08:32]} 26. Qd2 {[%emt 0:00:50]} Qa6 {[%emt 0:16:41]} 27. Qd3 {[%emt 0:02:43]} Qc6 {[%emt 0:19:43]} 1/2-1/2

[Event "NED-ch U20 Youth 2019"]
[Site "Assen"]
[Date "2019.05.03"]
[Round "6.5"]
[White "Mesman, Edwyn"]
[Black "Ghebreab, Elnathan"]
[Result "1/2-1/2"]
[ECO "A57"]
[WhiteElo "2224"]
[BlackElo "1882"]
[Annotator "NA"]
[PlyCount "155"]
[EventDate "2019.04.28"]
[EventType "swiss"]
[EventCountry "NED"]
[SourceTitle "playchess.com"]
[Source "ChessBase"]
[SourceQuality "1"]
[TimeControl "40/5400+30:1800+30"]

1. d4 {[%emt 0:00:00]} Nf6 {[%emt 0:00:00]} 2. c4 {[%emt 0:00:00]} c5 {[%emt 0:00:27]} 3. d5 {[%emt 0:00:09]} b5 {[%emt 0:00:20]} 4. Qc2 {[%emt 0:00:08]} bxc4 {[%emt 0:02:19]} 5. e4 {[%emt 0:00:05]} g6 {[%emt 0:00:21]} 6. Nf3 {[%emt 0:00:45]} Bg7 {[%emt 0:00:58]} 7. Bxc4 {[%emt 0:00:11]} O-O {[%emt 0:00:33]} 8. O-O {[%emt 0:01:07]} d6 {[%emt 0:02:03]} 9. h3 {[%emt 0:02:38]} Qb6 {[%emt 0:03:41]} 10. Bd2 {[%emt 0:06:28]} Ba6 {[%emt 0:01:51]} 11. Na3 {[%emt 0:00:33]} Nbd7 {[%emt 0:06:57]} 12. Bc3 {[%emt 0:02:06]} Bxc4 {[%emt 0:02:46]} 13. Nxc4 {[%emt 0:00:07]} Qa6 {[%emt 0:02:53]} 14. b3 {[%emt 0:04:35]} Nb6 {[%emt 0:02:41]} 15. Nfd2 {[%emt 0:09:24]} Rad8 {[%emt 0:11:27]} 16. f4 {[%emt 0:03:42]} e6 {[%emt 0:02:34]} 17. Bxf6 {[%emt 0:33:32]} Bxf6 {[%emt 0:04:39]} 18. e5 {[%emt 0:00:05]} dxe5 {[%emt 0:22:39]} 19. fxe5 {[%emt 0:00:07]} Bg7 {[%emt 0:03:00]} 20. d6 {[%emt 0:01:37]} f6 {[%emt 0:04:07]} 21. Ne4 {[%emt 0:02:00]} Nxc4 {[%emt 0:02:02]} 22. bxc4 {[%emt 0:04:32]} f5 {[%emt 0:04:56]} 23. Nxc5 {[%emt 0:00:54]} Qb6 {[%emt 0:00:09]} 24. Qf2 {[%emt 0:00:21]} Bxe5 {[%emt 0:00:26]} 25. Rae1 {[%emt 0:14:19]} Qxd6 {[%emt 0:04:43]} 26. Nb7 {[%emt 0:03:06]} Bd4 {[%emt 0:00:18]} 27. Nxd6 {[%emt 0:00:19]} Bxf2+ {[%emt 0:00:08]} 28. Rxf2 {[%emt 0:00:10]} Rxd6 {[%emt 0:00:02]} 29. Rb2 {[%emt 0:00:43]} Re8 {[%emt 0:01:56]} 30. Re5 {[%emt 0:00:37]} Kf7 {[%emt 0:00:52]} 31. Kf2 {[%emt 0:02:08]} Kf6 {[%emt 0:01:02]} 32. Ra5 {[%emt 0:00:03]} Re7 {[%emt 0:00:27]} 33. Rab5 {[%emt 0:04:58]} Rc7 {[%emt 0:03:57]} 34. Rc2 {[%emt 0:01:26]} Rdc6 {[%emt 0:01:01]} 35. Rb4 {[%emt 0:00:04]} h6 {[%emt 0:00:22]} 36. Ke3 {[%emt 0:00:13]} g5 {[%emt 0:01:11]} 37. Kd4 {[%emt 0:00:19]} Rd7+ {[%emt 0:01:56]} 38. Kc3 {[%emt 0:00:32]} f4 {[%emt 0:01:24]} 39. Re2 {[%emt 0:01:25]} a6 {[%emt 0:00:31]} 40. a4 {[%emt 0:00:53]} e5 {[%emt 0:00:30]} 41. a5 {[%emt 0:33:08]} Rd4 {[%emt 0:16:36]} 42. Kb3 {[%emt 0:00:00]} Kf5 {[%emt 0:05:47]} 43. Rc2 {[%emt 0:00:00]} e4 {[%emt 0:08:34]} 44. Rb6 {[%emt 0:00:00]} Rdd6 {[%emt 0:00:04]} 45. c5 {[%emt 0:00:00]} Re6 {[%emt 0:00:34]} 46. Kc4 {[%emt 0:00:00]} Rc8 {[%emt 0:01:20]} 47. Rxe6 {[%emt 0:00:00]} Kxe6 {[%emt 0:00:01]} 48. Kd4 {[%emt 0:00:00]} e3 {[%emt 0:00:48]} 49. g3 {[%emt 0:00:00]} fxg3 {[%emt 0:01:00]} 50. Rc3 {[%emt 0:00:00]} Rd8+ {[%emt 0:05:35]} 51. Kxe3 {[%emt 0:00:00]} g2 {[%emt 0:00:13]} 52. Kf2 {[%emt 0:00:00]} Rd2+ {[%emt 0:00:05]} 53. Kg1 {[%emt 0:00:00]} Kd7 {[%emt 0:00:15]} 54. Rb3 {[%emt 0:00:00]} Kc6 {[%emt 0:01:20]} 55. Rb6+ {[%emt 0:00:00]} Kxc5 {[%emt 0:00:15]} 56. Rxa6 {[%emt 0:00:00]} Kb5 {[%emt 0:00:50]} 57. Rxh6 {[%emt 0:00:00]} Kxa5 {[%emt 0:00:19]} 58. Rg6 {[%emt 0:00:00]} Kb5 {[%emt 0:00:18]} 59. Rxg5+ {[%emt 0:00:00]} Kc6 {[%emt 0:00:11]} 60. h4 {[%emt 0:00:00]} Kd6 {[%emt 0:00:39]} 61. h5 {[%emt 0:00:00]} Ke6 {[%emt 0:00:19]} 62. h6 {[%emt 0:00:00]} Rd8 {[%emt 0:00:58]} 63. Kxg2 {[%emt 0:00:00]} Rh8 {[%emt 0:00:08]} 64. Ra5 {[%emt 0:00:00]} Kf7 {[%emt 0:00:20]} 65. Ra6 {[%emt 0:00:00]} Kg8 {[%emt 0:01:00]} 66. Kg3 {[%emt 0:00:00]} Kh7 {[%emt 0:00:07]} 67. Kf4 {[%emt 0:00:00]} Rg8 {[%emt 0:01:05]} 68. Kf5 {[%emt 0:00:00]} Rf8+ {[%emt 0:00:21]} 69. Kg5 {[%emt 0:00:00]} Rg8+ {[%emt 0:00:10]} 70. Kh5 {[%emt 0:00:00]} Rg1 {[%emt 0:00:37]} 71. Ra7+ {[%emt 0:00:00]} Kh8 {[%emt 0:00:07]} 72. Re7 {[%emt 0:00:00]} Rg2 {[%emt 0:00:37]} 73. Re5 {[%emt 0:00:00]} Rg1 {[%emt 0:00:13]} 74. Rf5 {[%emt 0:00:00]} Kh7 {[%emt 0:00:30]} 75. Rg5 {[%emt 0:00:00]} Rxg5+ {[%emt 0:00:19]} 76. Kxg5 {[%emt 0:00:00]} Kg8 {[%emt 0:00:18]} 77. Kg6 {[%emt 0:00:00]} Kh8 {[%emt 0:00:02]} 78. h7 {[%emt 0:00:00]} 1/2-1/2

[Event "NED-ch U20 Youth 2019"]
[Site "Assen"]
[Date "2019.05.03"]
[Round "6.6"]
[White "Van Foreest, Machteld"]
[Black "Ypma, Jord"]
[Result "1/2-1/2"]
[ECO "B94"]
[WhiteElo "2065"]
[BlackElo "1854"]
[Annotator "NA"]
[PlyCount "108"]
[EventDate "2019.04.28"]
[EventType "swiss"]
[EventCountry "NED"]
[SourceTitle "playchess.com"]
[Source "ChessBase"]
[SourceQuality "1"]
[TimeControl "40/5400+30:1800+30"]

1. e4 {[%emt 0:00:00]} c5 {[%emt 0:00:00]} 2. Nf3 {[%emt 0:00:00]} d6 {[%emt 0:00:21]} 3. d4 {[%emt 0:00:00]} cxd4 {[%emt 0:00:12]} 4. Nxd4 {[%emt 0:00:00]} Nf6 {[%emt 0:00:07]} 5. Nc3 {[%emt 0:00:00]} a6 {[%emt 0:00:21]} 6. Bg5 {[%emt 0:05:25]} Nbd7 {[%emt 0:00:21]} 7. Qe2 {[%emt 0:03:15]} Qa5 {[%emt 0:02:03]} 8. f4 {[%emt 0:05:10]} h6 {[%emt 0:01:38]} 9. Bh4 {[%emt 0:05:45]} e5 {[%emt 0:02:02]} 10. Nb3 {[%emt 0:02:13]} Qc7 {[%emt 1:27:55]} 11. O-O-O {[%emt 0:02:58]} Be7 {[%emt 0:00:00]} 12. g4 {[%emt 0:03:50]} exf4 {[%emt 0:00:00]} 13. g5 {[%emt 0:08:54]} hxg5 {[%emt 0:00:00]} 14. Bxg5 {[%emt 0:04:31]} b5 {[%emt 0:00:00]} 15. Bxf4 {[%emt 0:05:24]} Bb7 {[%emt 0:00:00]} 16. Nd4 {[%emt 0:03:25]} Ne5 {[%emt 0:00:00]} 17. Nf5 {[%emt 0:03:24]} g6 {[%emt 0:00:00]} 18. Nxe7 {[%emt 0:00:34]} Qxe7 {[%emt 0:00:00]} 19. Bg5 {[%emt 0:00:12]} Qe6 {[%emt 0:00:00]} 20. Bg2 {[%emt 0:06:36]} b4 {[%emt 0:00:00]} 21. Bxf6 {[%emt 0:03:32]} bxc3 {[%emt 0:00:00]} 22. Bxe5 {[%emt 0:01:44]} Qxe5 {[%emt 0:00:00]} 23. h3 {[%emt 0:04:47]} cxb2+ {[%emt 0:00:00]} 24. Kb1 {[%emt 0:00:16]} Rc8 {[%emt 0:00:00]} 25. Qd3 {[%emt 0:02:14]} Ke7 {[%emt 0:00:00]} 26. Qb3 {[%emt 0:02:37]} Rc7 {[%emt 0:00:00]} 27. Rhf1 {[%emt 0:00:52]} f6 {[%emt 0:00:00]} 28. Rd3 {[%emt 0:02:16]} Rhc8 {[%emt 0:00:00]} 29. Rd2 {[%emt 0:03:23]} Bc6 {[%emt 0:00:00]} 30. Rfd1 {[%emt 0:01:51]} Bd7 {[%emt 0:00:00]} 31. Qa3 {[%emt 0:03:28]} Rc6 {[%emt 0:00:00]} 32. Rd5 {[%emt 0:03:20]} Qh2 {[%emt 0:00:10]} 33. R5d2 {[%emt 0:00:48]} Qe5 {[%emt 0:03:57]} 34. Rd5 {[%emt 0:00:39]} Qh2 {[%emt 0:00:45]} 35. R5d2 {[%emt 0:01:03]} Rxc2 {[%emt 0:05:11]} 36. Rxc2 {[%emt 0:07:03]} Rxc2 {[%emt 0:00:11]} 37. Kxc2 {[%emt 0:00:16]} Qxg2+ {[%emt 0:00:05]} 38. Kb1 {[%emt 0:00:12]} Qxe4+ {[%emt 0:00:07]} 39. Kxb2 {[%emt 0:00:28]} Qe5+ {[%emt 0:00:23]} 40. Kc1 {[%emt 0:03:14]} Qa1+ {[%emt 0:01:17]} 41. Kd2 {[%emt 0:31:31]} Qd4+ {[%emt 0:30:21]} 42. Kc1 {[%emt 0:02:48]} Qf4+ {[%emt 0:00:00]} 43. Rd2 {[%emt 0:00:00]} Qc4+ {[%emt 0:00:00]} 44. Kb2 {[%emt 0:00:00]} Qb5+ {[%emt 0:00:00]} 45. Kc1 {[%emt 0:00:00]} Qc6+ {[%emt 0:00:00]} 46. Kb2 {[%emt 0:00:00]} Qb6+ {[%emt 0:00:00]} 47. Kc1 {[%emt 0:00:00]} Bf5 {[%emt 0:00:00]} 48. Re2+ {[%emt 0:00:00]} Kf7 {[%emt 0:00:00]} 49. Kd2 {[%emt 0:00:00]} Qd4+ {[%emt 0:00:00]} 50. Ke1 {[%emt 0:00:00]} Qg1+ {[%emt 0:00:00]} 51. Kd2 {[%emt 0:00:00]} Qd4+ {[%emt 0:00:00]} 52. Ke1 {[%emt 0:00:00]} Qh4+ {[%emt 0:00:00]} 53. Kd2 {[%emt 0:00:00]} Qg5+ {[%emt 0:02:20]} 54. Kd1 {[%emt 0:00:00]} Qg1+ {[%emt 0:03:55]} 1/2-1/2

[Event "NED-ch U20 Youth 2019"]
[Site "Assen"]
[Date "2019.05.03"]
[Round "6.7"]
[White "Van Hoorn, Geert"]
[Black "Achuthan, Dylan"]
[Result "1-0"]
[ECO "B32"]
[WhiteElo "1965"]
[BlackElo "1863"]
[Annotator "NA"]
[PlyCount "73"]
[EventDate "2019.04.28"]
[EventType "swiss"]
[EventCountry "NED"]
[SourceTitle "playchess.com"]
[Source "ChessBase"]
[SourceQuality "1"]
[TimeControl "40/5400+30:1800+30"]

1. e4 {[%emt 0:00:00]} c5 {[%emt 0:00:00]} 2. Nf3 {[%emt 0:00:00]} Nc6 {[%emt 0:00:00]} 3. d4 {[%emt 0:00:00]} cxd4 {[%emt 0:00:01]} 4. Nxd4 {[%emt 0:00:00]} e5 {[%emt 0:00:08]} 5. Nb5 {[%emt 0:00:00]} d6 {[%emt 0:00:09]} 6. c4 {[%emt 0:00:01]} Be7 {[%emt 0:00:06]} 7. N5c3 {[%emt 0:00:10]} Nf6 {[%emt 0:00:28]} 8. Bd3 {[%emt 0:00:05]} O-O {[%emt 0:00:19]} 9. O-O {[%emt 0:00:12]} Be6 {[%emt 0:00:08]} 10. Nd5 {[%emt 0:00:27]} Rc8 {[%emt 0:00:12]} 11. Nbc3 {[%emt 0:01:11]} a6 {[%emt 0:00:11]} 12. Be3 {[%emt 0:02:59]} Ne8 {[%emt 0:01:48]} 13. Nb6 {[%emt 0:02:37]} Rb8 {[%emt 0:01:33]} 14. Ncd5 {[%emt 0:01:49]} Bg5 {[%emt 0:10:29]} 15. Qd2 {[%emt 0:10:17]} Bxe3 {[%emt 0:00:40]} 16. Qxe3 {[%emt 0:00:13]} Nd4 {[%emt 0:01:24]} 17. f4 {[%emt 0:01:29]} Bxd5 {[%emt 0:06:50]} 18. Nxd5 {[%emt 0:01:07]} Qh4 {[%emt 0:08:41]} 19. b4 {[%emt 0:07:01]} Nf6 {[%emt 0:19:30]} 20. g3 {[%emt 0:09:26]} Qh6 {[%emt 0:02:27]} 21. fxe5 {[%emt 0:01:57]} Qxe3+ {[%emt 0:00:26]} 22. Nxe3 {[%emt 0:00:11]} dxe5 {[%emt 0:00:23]} 23. Nd5 {[%emt 0:00:17]} Nxd5 {[%emt 0:15:32]} 24. exd5 {[%emt 0:00:25]} f5 {[%emt 0:01:28]} 25. Rad1 {[%emt 0:04:24]} g5 {[%emt 0:09:50]} 26. c5 {[%emt 0:01:50]} Kg7 {[%emt 0:03:18]} 27. Rf2 {[%emt 0:03:40]} Rbe8 {[%emt 0:04:24]} 28. d6 {[%emt 0:04:12]} e4 {[%emt 0:03:26]} 29. Bxa6 {[%emt 0:04:20]} e3 {[%emt 0:01:20]} 30. d7 {[%emt 0:19:50]} Re4 {[%emt 0:09:16]} 31. Bxb7 {[%emt 0:02:49]} exf2+ {[%emt 0:00:18]} 32. Kxf2 {[%emt 0:00:06]} Ne6 {[%emt 0:00:44]} 33. Bxe4 {[%emt 0:01:28]} fxe4+ {[%emt 0:00:01]} 34. Ke3 {[%emt 0:00:21]} Nd8 {[%emt 0:00:57]} 35. b5 {[%emt 0:01:00]} Kf7 {[%emt 0:00:31]} 36. c6 {[%emt 0:01:06]} Ne6 {[%emt 0:00:28]} 37. b6 {[%emt 0:00:49]} 1-0

[Event "NED-ch U20 Youth 2019"]
[Site "Assen"]
[Date "2019.05.03"]
[Round "6.8"]
[White "Van Randtwijk, Mick"]
[Black "Emans, Job"]
[Result "1-0"]
[ECO "C65"]
[WhiteElo "2168"]
[BlackElo "1945"]
[Annotator "NA"]
[PlyCount "93"]
[EventDate "2019.04.28"]
[EventType "swiss"]
[EventCountry "NED"]
[SourceTitle "playchess.com"]
[Source "ChessBase"]
[SourceQuality "1"]
[TimeControl "40/5400+30:1800+30"]

1. e4 {[%emt 0:00:00]} e5 {[%emt 0:00:00]} 2. Nf3 {[%emt 0:00:00]} Nc6 {[%emt 0:00:00]} 3. Bb5 {[%emt 0:00:00]} Nf6 {[%emt 0:00:00]} 4. d3 {[%emt 0:00:00]} Bc5 {[%emt 0:00:00]} 5. Bxc6 {[%emt 0:00:21]} dxc6 {[%emt 0:00:05]} 6. Nbd2 {[%emt 0:00:07]} O-O {[%emt 0:06:29]} 7. Qe2 {[%emt 0:00:06]} Re8 {[%emt 0:01:08]} 8. Nc4 {[%emt 0:00:10]} Bd6 {[%emt 0:12:24]} 9. Bg5 {[%emt 0:02:29]} h6 {[%emt 0:03:11]} 10. Bh4 {[%emt 0:00:52]} b5 {[%emt 0:10:11]} 11. Ne3 {[%emt 0:01:29]} Be6 {[%emt 0:01:09]} 12. Nf5 {[%emt 0:09:59]} Bxf5 {[%emt 0:07:26]} 13. exf5 {[%emt 0:00:06]} Qd7 {[%emt 0:00:17]} 14. Bxf6 {[%emt 0:01:53]} gxf6 {[%emt 0:00:05]} 15. g4 {[%emt 0:03:05]} Kh7 {[%emt 0:01:01]} 16. Nd2 {[%emt 0:02:40]} Rad8 {[%emt 0:01:58]} 17. Ne4 {[%emt 0:01:42]} Bb4+ {[%emt 0:01:17]} 18. Kf1 {[%emt 0:04:00]} Be7 {[%emt 0:00:27]} 19. Rg1 {[%emt 0:01:49]} Rg8 {[%emt 0:01:07]} 20. Rg3 {[%emt 0:02:18]} Qd4 {[%emt 0:10:35]} 21. c3 {[%emt 0:02:51]} Qd5 {[%emt 0:00:36]} 22. Qe3 {[%emt 0:02:22]} Kg7 {[%emt 0:01:17]} 23. h4 {[%emt 0:04:03]} Rh8 {[%emt 0:03:32]} 24. Ke2 {[%emt 0:12:46]} Kf8 {[%emt 0:07:52]} 25. g5 {[%emt 0:03:51]} hxg5 {[%emt 0:00:11]} 26. hxg5 {[%emt 0:00:04]} Ke8 {[%emt 0:00:33]} 27. g6 {[%emt 0:05:55]} fxg6 {[%emt 0:05:16]} 28. Rxg6 {[%emt 0:00:12]} Rf8 {[%emt 0:00:29]} 29. b3 {[%emt 0:03:43]} c5 {[%emt 0:02:54]} 30. Rd1 {[%emt 0:10:44]} c4 {[%emt 0:03:34]} 31. Rd2 {[%emt 0:02:20]} cxb3 {[%emt 0:03:35]} 32. axb3 {[%emt 0:00:18]} a5 {[%emt 0:01:02]} 33. Qa7 {[%emt 0:02:18]} Ra8 {[%emt 0:05:26]} 34. Qxc7 {[%emt 0:01:05]} a4 {[%emt 0:00:47]} 35. Rg7 {[%emt 0:02:25]} Qd7 {[%emt 0:00:41]} 36. Rxe7+ {[%emt 0:00:14]} Kxe7 {[%emt 0:00:28]} 37. Qc5+ {[%emt 0:00:57]} Kf7 {[%emt 0:02:35]} 38. Nd6+ {[%emt 0:03:09]} Kg7 {[%emt 0:01:51]} 39. Rd1 {[%emt 0:01:15]} a3 {[%emt 0:02:23]} 40. Rg1+ {[%emt 0:11:47]} Kh8 {[%emt 0:00:53]} 41. Rh1+ {[%emt 0:30:06]} Qh7 {[%emt 0:15:56]} 42. Rxh7+ {[%emt 0:00:00]} Kxh7 {[%emt 0:00:09]} 43. Qd5 {[%emt 0:00:00]} a2 {[%emt 0:08:28]} 44. Qh1+ {[%emt 0:00:00]} Kg7 {[%emt 0:00:12]} 45. Qg1+ {[%emt 0:00:00]} Kh8 {[%emt 0:00:40]} 46. Nf7+ {[%emt 0:00:00]} Kh7 {[%emt 0:00:57]} 47. Qg6# {[%emt 0:00:00]} 1-0

[Event "NED-ch U20 Youth 2019"]
[Site "Assen"]
[Date "2019.05.03"]
[Round "6.9"]
[White "Van Aken, Jelmer"]
[Black "Van Doren, Bas"]
[Result "0-1"]
[ECO "A31"]
[WhiteElo "1698"]
[BlackElo "1945"]
[Annotator "NA"]
[PlyCount "74"]
[EventDate "2019.04.28"]
[EventType "swiss"]
[EventCountry "NED"]
[SourceTitle "playchess.com"]
[Source "ChessBase"]
[SourceQuality "1"]
[TimeControl "40/5400+30:1800+30"]

1. e4 {[%emt 0:00:00]} c5 {[%emt 0:00:00]} 2. Nf3 {[%emt 0:00:00]} e6 {[%emt 0:00:00]} 3. d4 {[%emt 0:00:00]} cxd4 {[%emt 0:00:00]} 4. Nxd4 {[%emt 0:00:00]} a6 {[%emt 0:00:00]} 5. c4 {[%emt 0:00:00]} Nf6 {[%emt 0:00:00]} 6. Nc3 {[%emt 0:00:00]} Qc7 {[%emt 0:00:00]} 7. a3 {[%emt 0:00:00]} b6 {[%emt 0:00:00]} 8. Be3 {[%emt 0:00:02]} Bb7 {[%emt 0:00:07]} 9. f3 {[%emt 0:00:04]} d6 {[%emt 0:00:30]} 10. Qd2 {[%emt 0:00:10]} Nbd7 {[%emt 0:00:30]} 11. Rc1 {[%emt 0:00:09]} Be7 {[%emt 0:00:53]} 12. Be2 {[%emt 0:00:18]} O-O {[%emt 0:00:41]} 13. O-O {[%emt 0:00:13]} Rac8 {[%emt 0:02:46]} 14. b4 {[%emt 0:02:17]} Qb8 {[%emt 0:00:28]} 15. Rfd1 {[%emt 0:00:44]} Rfe8 {[%emt 0:08:22]} 16. Nb3 {[%emt 0:04:43]} Bf8 {[%emt 0:09:35]} 17. Kh1 {[%emt 0:06:15]} Qa8 {[%emt 0:14:23]} 18. Na4 {[%emt 0:11:21]} d5 {[%emt 0:04:06]} 19. exd5 {[%emt 0:03:10]} exd5 {[%emt 0:02:03]} 20. Nxb6 {[%emt 0:04:55]} Nxb6 {[%emt 0:02:46]} 21. Bxb6 {[%emt 0:00:06]} dxc4 {[%emt 0:15:42]} 22. Na5 {[%emt 0:04:38]} c3 {[%emt 0:03:01]} 23. Qd3 {[%emt 0:05:24]} Nd5 {[%emt 0:01:53]} 24. Nxb7 {[%emt 0:06:54]} Nf4 {[%emt 0:06:16]} 25. Qxa6 {[%emt 0:06:24]} Nxe2 {[%emt 0:00:14]} 26. Qxa8 {[%emt 0:01:58]} Rxa8 {[%emt 0:00:07]} 27. Na5 {[%emt 0:03:36]} Nxc1 {[%emt 0:00:30]} 28. Rxc1 {[%emt 0:00:07]} Rac8 {[%emt 0:02:02]} 29. Nb3 {[%emt 0:03:46]} g6 {[%emt 0:02:13]} 30. f4 {[%emt 0:07:55]} Re2 {[%emt 0:02:09]} 31. Bc5 {[%emt 0:05:30]} Bg7 {[%emt 0:01:53]} 32. Kg1 {[%emt 0:03:16]} Rb2 {[%emt 0:01:16]} 33. Na1 {[%emt 0:01:40]} Re8 {[%emt 0:02:46]} 34. Nc2 {[%emt 0:01:35]} Re2 {[%emt 0:00:47]} 35. Ne3 {[%emt 0:00:06]} c2 {[%emt 0:01:09]} 36. Kf1 {[%emt 0:00:52]} Rd2 {[%emt 0:00:07]} 37. Ke1 {[%emt 0:02:10]} Bc3 {[%emt 0:00:06]} 0-1

[Event "NED-ch U20 Youth 2019"]
[Site "Assen"]
[Date "2019.05.03"]
[Round "6.10"]
[White "Reichardt, Robin"]
[Black "Gijsen, William"]
[Result "1-0"]
[ECO "A81"]
[WhiteElo "2061"]
[BlackElo "2041"]
[Annotator "NA"]
[PlyCount "45"]
[EventDate "2019.04.28"]
[EventType "swiss"]
[EventCountry "NED"]
[SourceTitle "playchess.com"]
[Source "ChessBase"]
[SourceQuality "1"]
[TimeControl "40/5400+30:1800+30"]

1. d4 {[%emt 0:00:00]} f5 {[%emt 0:00:00]} 2. g3 {[%emt 0:00:00]} Nf6 {[%emt 0:00:00]} 3. Nf3 {[%emt 0:00:00]} e6 {[%emt 0:00:00]} 4. Bg2 {[%emt 0:00:49]} Be7 {[%emt 0:02:17]} 5. O-O {[%emt 0:01:33]} O-O {[%emt 0:00:04]} 6. b3 {[%emt 0:02:18]} d6 {[%emt 0:00:24]} 7. Bb2 {[%emt 0:00:48]} Ne4 {[%emt 0:00:06]} 8. Nbd2 {[%emt 0:02:36]} Nd7 {[%emt 0:00:20]} 9. c4 {[%emt 0:02:53]} Ndf6 {[%emt 0:01:45]} 10. Ne1 {[%emt 0:05:44]} Nxd2 {[%emt 0:05:08]} 11. Qxd2 {[%emt 0:00:55]} Ng4 {[%emt 0:02:19]} 12. Nd3 {[%emt 0:06:08]} Bf6 {[%emt 0:02:10]} 13. Rad1 {[%emt 0:06:26]} Qe8 {[%emt 0:01:01]} 14. h3 {[%emt 0:05:10]} Nh6 {[%emt 0:00:05]} 15. f4 {[%emt 0:07:16]} Nf7 {[%emt 0:06:33]} 16. e4 {[%emt 0:12:38]} fxe4 {[%emt 0:01:39]} 17. Bxe4 {[%emt 0:01:36]} e5 {[%emt 0:02:06]} 18. dxe5 {[%emt 0:02:00]} dxe5 {[%emt 0:00:16]} 19. Nxe5 {[%emt 0:06:01]} Bxe5 {[%emt 0:01:26]} 20. fxe5 {[%emt 0:03:14]} Bxh3 {[%emt 0:01:34]} 21. Rfe1 {[%emt 0:03:14]} Bg4 {[%emt 0:01:49]} 22. e6 {[%emt 0:07:36]} Nd6 {[%emt 0:04:56]} 23. Qg5 {[%emt 0:02:40]} 1-0